bitfinex/quotes_ETHUSD_20220101
["timestamp","ask_amount","ask_price","bid_price","bid_amount"]
[1641069894351,1.51374107,3763.9,3763.7,0.00170527]
[1641069894555,0.66455,3763.7,3763.5,0.00284211]
[1641069894757,0.383,3763.6,3763.5,0.00284211]
[1641069894953,0.383,3763.6,3763.2,1.3289593]
[1641069894954,1.0,3763.4,3763.3,0.00397896]
[1641069895153,0.383,3763.4,3763.3,0.00397896]
[1641069895354,0.983,3763.4,3763.3,0.00397896]
[1641069895553,0.983,3763.4,3763.3,2.15397896]
[1641069895753,0.683,3763.4,3763.3,2.15397896]
[1641069895956,1.683,3763.4,3763.3,2.15397896]
[1641069896156,0.683,3763.4,3763.3,2.15397896]
[1641069896352,1.683,3763.4,3763.3,2.15397896]
[1641069896757,0.683,3763.4,3763.3,2.15397896]
[1641069896956,1.683,3763.4,3763.3,2.15397896]
[1641069897355,0.683,3763.4,3763.3,2.15397896]
[1641069897589,1.683,3763.4,3763.3,2.15397896]
[1641069897792,0.683,3763.4,3763.3,2.15397896]
[1641069897994,1.683,3763.4,3763.3,2.15397896]
[1641069898995,1.683,3763.4,3763.3,2.10397896]
[1641069899400,0.683,3763.4,3763.3,2.10397896]
[1641069899595,1.683,3763.4,3763.3,2.10397896]
[1641069899797,0.683,3763.4,3763.3,2.10397896]
[1641069902257,1.683,3763.4,3763.3,2.10397896]
[1641069903066,0.683,3763.4,3763.3,2.10397896]
[1641069903464,1.683,3763.4,3763.3,2.10397896]
[1641069903664,0.683,3763.4,3763.3,2.10397896]
[1641069903865,1.683,3763.4,3763.3,2.10397896]
[1641069904063,0.683,3763.4,3763.3,2.10397896]
[1641069905509,0.983,3763.4,3763.3,2.10397896]
[1641069906510,0.983,3763.4,3763.3,4.10397896]
[1641069908119,0.383,3763.4,3763.3,4.10397896]
[1641069908323,0.03219629,3763.6,3763.3,4.10397896]
[1641069908521,0.66438,3763.7,3763.3,8.03165724]
[1641069908720,0.00113685,3763.5,3763.3,8.69601314]
[1641069908953,0.00113685,3763.5,3763.3,4.76833486]
[1641069909150,0.00341054,3763.9,3763.7,1.03291752]
[1641069909350,0.00341054,3763.9,3763.7,1.69725752]
[1641069909550,0.00284212,3763.8,3763.7,1.69725752]
[1641069909872,40.04826637,3764.0,3763.8,0.13819997]
[1641069910052,17.17223208,3764.0,3763.8,0.13819997]
[1641069910250,0.001,3764.3,3764.0,3.0380827]
[1641069910455,1.33017615,3764.8,3764.0,3.0380827]
[1641069910456,1.33017615,3764.8,3764.4,0.66408]
[1641069910654,1.33017615,3764.8,3764.5,1.12608688]
[1641069910850,1.33017615,3764.8,3764.6,0.66409]
[1641069910851,7.615e-05,3764.8,3764.6,0.66409]
[1641069911253,1.77356819,3765.1,3764.6,0.66409]
[1641069911453,1.77356819,3765.1,3764.7,0.66403]
[1641069911650,0.00682108,3765.0,3764.7,0.66403]
[1641069912051,0.00625266,3764.9,3764.7,5.81401545]
[1641069912633,0.00568423,3764.8,3764.7,5.67803]
[1641069912820,1.77356819,3765.3,3764.8,5.188914]
[1641069913119,1.77356819,3765.3,3765.1,2.38470206]
[1641069913120,2.07356819,3765.3,3765.1,2.38470206]
[1641069914226,0.3,3765.3,3765.1,2.38470206]
[1641069914624,1.77356819,3765.4,3765.2,0.25263845]
[1641069914625,2.37356819,3765.4,3765.2,0.25263845]
[1641069914826,2.37356819,3765.4,3765.2,0.5052769]
[1641069915026,1.77641031,3765.3,3765.2,0.5052769]
[1641069916765,0.00284212,3765.3,3765.2,0.5052769]
[1641069918469,2.70284212,3765.3,3765.2,0.5052769]
[1641069921705,2.70284212,3765.3,3765.2,0.5060769]
[1641069922504,2.70284212,3765.3,3765.2,1.5632868]
[1641069924158,2.65284212,3765.3,3765.2,4.7132868]
[1641069924560,2.65284212,3765.3,3765.2,8.49200222]
[1641069925058,2.65284212,3765.3,3765.2,4.7132868]
[1641069925257,2.46952242,3765.6,3765.4,1.15514035]
[1641069925458,2.46952242,3765.6,3765.4,1.81910035]
[1641069925659,0.00113685,3765.5,3765.4,2.48306035]
[1641069926659,0.00113685,3765.5,3765.4,3.14700605]
[1641069927258,0.00113685,3765.5,3765.4,5.84700605]
[1641069928303,0.00113685,3765.5,3765.4,9.89700605]
[1641069928704,0.00113685,3765.5,3765.4,9.89780605]
[1641069929508,0.00113685,3765.5,3765.4,13.64627029]
[1641069929907,2.30113685,3765.5,3765.4,3.14780605]
[1641069930812,2.30113685,3765.5,3765.4,3.4004445]
[1641069931110,2.30113685,3765.5,3765.4,6.60308295]
[1641069933263,2.30113685,3765.5,3765.4,3.65308295]
[1641069934164,2.30113685,3765.5,3765.4,6.40308295]
[1641069934966,2.30113685,3765.5,3765.4,7.45231883]
[1641069937428,2.99450857,3765.5,3765.4,7.45231883]
[1641069940174,1.35856802,3766.0,3765.5,7.2]
[1641069940378,1.35856802,3766.0,3765.6,5.42783619]
[1641069940580,0.00227369,3765.9,3765.7,0.6638342]
[1641069940776,0.00227369,3765.9,3765.8,10.17763444]
[1641069940975,1.35856802,3766.0,3765.8,10.17763444]
[1641069941678,1.35856802,3766.3,3766.0,0.6638275]
[1641069941879,1.65856802,3766.3,3766.0,0.6638275]
[1641069942078,0.00397896,3766.2,3766.0,0.6638275]
[1641069942479,0.00341054,3766.1,3766.0,5.55482297]
[1641069943510,0.00341054,3766.1,3766.0,6.88250297]
[1641069943913,0.00341054,3766.1,3766.0,5.55482297]
[1641069944114,0.00341054,3766.1,3766.0,9.32970648]
[1641069944412,0.00341054,3766.1,3766.0,9.33050648]
[1641069945614,0.00341054,3766.1,3766.0,5.55562297]
[1641069946012,0.00341054,3766.1,3766.0,6.06089987]
[1641069946659,0.00341054,3766.1,3766.0,9.91698633]
[1641069949468,2.30341054,3766.1,3766.0,9.91698633]
[1641069949768,2.30341054,3766.1,3766.0,6.06089987]
[1641069950209,2.25341054,3766.1,3766.0,6.06089987]
[1641069952115,32.7109,3766.8,3766.0,6.06089987]
[1641069952315,32.7109,3766.8,3766.3,1.3275976]
[1641069952512,0.00341054,3766.7,3766.3,1.9913976]
[1641069952813,0.00284211,3766.6,3766.3,1.9913976]
[1641069953211,0.00227369,3766.5,3766.3,1.9913976]
[1641069953613,33.3109,3766.8,3766.5,0.6638]
[1641069953865,33.3109,3766.8,3766.5,1.3275839]
[1641069954072,0.00341054,3766.7,3766.5,1.3275839]
[1641069954470,33.3109,3766.8,3766.5,1.3275839]
[1641069954471,0.00284211,3766.6,3766.5,1.3275839]
[1641069959009,0.00284211,3766.6,3766.5,1.3283839]
[1641069963462,0.00284211,3766.6,3766.5,1.8336608]
[1641069965914,0.00284211,3766.6,3766.5,3.9836608]
[1641069970362,0.00284211,3766.6,3766.5,4.99863258]
[1641069971361,0.00284211,3766.6,3766.5,2.84863258]
[1641069972267,0.00284211,3766.6,3766.5,1.8336608]
[1641069973104,0.00284211,3766.6,3766.5,2.84916728]
[1641069973305,0.00284211,3766.6,3766.5,1.52158338]
[1641069975712,7.51572825,3766.6,3766.5,1.52158338]
[1641069975910,2.8,3766.5,3765.7,1.27890669]
[1641069976210,0.66401,3766.1,3765.8,0.00170527]
[1641069976479,0.33284874,3766.1,3765.6,0.00284212]
[1641069976680,0.3,3766.0,3765.6,0.00284212]
[1641069976884,0.683,3766.0,3765.6,0.00284212]
[1641069977083,0.66401,3765.9,3765.6,0.00284212]
[1641069977287,0.383,3765.8,3765.6,0.00284212]
[1641069977489,0.383,3765.8,3765.5,0.00341054]
[1641069977684,0.383,3765.8,3765.0,0.00625266]
[1641069977886,4.80514658,3765.8,3765.0,0.00625266]
[1641069978086,0.7838,3765.8,3765.0,0.00625266]
[1641069978288,0.66407,3765.4,3765.0,0.00625266]
[1641069978487,0.383,3765.3,3765.0,0.00625266]
[1641069978686,0.383,3765.3,3764.7,0.00795793]
[1641069979287,0.66414,3765.0,3764.7,1.33623553]
[1641069979686,0.66414,3765.0,3764.8,0.00738951]
[1641069980311,0.66414,3765.0,3764.8,0.67150521]
[1641069980611,0.66414,3765.0,3764.9,3.20682108]
[1641069984267,0.66414,3765.0,3764.9,0.00682108]
[1641069984468,0.96414,3765.0,3764.9,0.00682108]
[1641069984669,0.96414,3765.0,3764.8,0.00738951]
[1641069984868,1.65766377,3765.0,3764.6,0.00852635]
[1641069985172,0.66416,3764.8,3764.6,0.00852635]
[1641069985569,0.96416,3764.8,3764.6,0.00852635]
[1641069985773,1.26416,3764.8,3764.6,0.00852635]
[1641069986370,0.66417,3764.7,3764.5,1.33740708]
[1641069986770,0.66417,3764.7,3764.6,0.00852635]
[1641069988414,0.66417,3764.7,3764.4,0.0096632]
[1641069993664,0.66417,3764.7,3764.5,0.66417]
[1641069994065,0.66417,3764.7,3764.6,0.00852635]
[1641069994264,0.66417,3764.7,3764.5,0.52269635]
[1641069996011,0.66417,3764.7,3764.5,1.18684635]
[1641070001386,0.66417,3764.7,3764.4,0.66416]
[1641070001387,0.66417,3764.7,3764.3,1.38508446]
[1641070001788,0.66417,3764.7,3764.4,0.00113685]
[1641070004112,0.66417,3764.7,3764.5,0.66417]
[1641070007559,0.66417,3764.7,3764.4,0.00113685]
[1641070008865,0.66417,3764.7,3764.4,0.9463722]
[1641070009066,0.66417,3764.7,3764.4,0.00113685]
[1641070010311,0.66417,3764.7,3764.4,0.94635127]
[1641070010511,0.96417,3764.7,3764.4,0.94635127]
[1641070010712,1.32837,3764.6,3764.4,0.94635127]
[1641070011114,1.62837,3764.6,3764.4,0.94635127]
[1641070011313,0.66417,3764.5,3764.4,0.94635127]
[1641070011510,0.96417,3764.5,3764.4,0.94635127]
[1641070011912,1.26417,3764.5,3764.4,0.94635127]
[1641070013114,1.26417,3764.5,3764.4,0.00113685]
[1641070013718,1.26417,3764.5,3764.4,0.94521396]
[1641070014172,1.26417,3764.5,3764.3,0.00170528]
[1641070015172,1.95779312,3764.5,3764.3,0.00170528]
[1641070018213,1.65779312,3764.5,3764.3,0.00170528]
[1641070018417,0.1104,3765.5,3764.3,0.00170528]
[1641070018418,1.32356819,3765.0,3764.9,27.11181632]
[1641070018614,1.99243,3765.7,3765.6,0.80364724]
[1641070018814,1.0,3765.9,3765.7,2.65653]
[1641070019025,3.61472986,3765.9,3765.8,11.3029985]
[1641070019218,4.43392049,3766.5,3765.8,11.3029985]
[1641070019219,4.43392049,3766.5,3765.9,7.2]
[1641070019420,4.43392049,3766.5,3766.0,4.4859985]
[1641070019618,4.0819144,3766.6,3766.1,7.2]
[1641070019820,2.9616822,3768.4,3766.6,8.03976838]
[1641070020022,2.9616822,3768.4,3766.7,4.1029985]
[1641070020221,0.00625266,3767.5,3767.1,0.66355]
[1641070020428,0.00625266,3767.5,3767.1,1.99055]
[1641070020623,0.00625266,3767.5,3767.1,2.37355]
[1641070020624,0.00568423,3767.4,3767.1,2.37355]
[1641070020820,0.00568423,3767.4,3767.1,3.26330327]
[1641070021061,0.00511581,3767.3,3767.1,3.26330327]
[1641070021468,0.00454739,3767.2,3767.1,3.26330327]
[1641070023673,0.00454739,3767.2,3767.1,5.25395147]
[1641070026514,0.00454739,3767.2,3766.6,0.83976838]
[1641070026515,0.67166701,3767.0,3766.6,0.83976838]
[1641070026717,0.54757936,3765.7,3765.6,0.07153589]
[1641070027120,0.84757936,3765.7,3765.6,0.07153589]
[1641070027315,27.94004774,3765.7,3765.6,0.07153589]
[1641070027515,28.24004774,3765.7,3765.6,0.07153589]
[1641070028215,0.93057936,3765.7,3765.6,0.07153589]
[1641070028417,0.54757936,3765.7,3765.6,0.07153589]
[1641070029082,0.54757936,3765.7,3765.6,3.82153589]
[1641070031280,24.25624269,3765.7,3765.6,0.07153589]
[1641070037075,24.25624269,3765.7,3765.6,3.22153589]
[1641070039383,0.54757936,3765.7,3765.6,3.22153589]
[1641070040122,0.54757936,3765.7,3765.6,7.27153589]
[1641070040320,0.54757936,3765.7,3765.6,3.22153589]
[1641070044882,0.54757936,3765.7,3765.6,5.67153589]
[1641070046281,0.54757936,3765.7,3765.6,6.23977637]
[1641070046881,0.54757936,3765.7,3765.6,3.22153589]
[1641070049520,0.54757936,3765.7,3765.6,6.23990561]
[1641070064421,0.54757936,3765.7,3765.6,3.08990561]
[1641070071526,0.84757936,3765.7,3765.6,3.08990561]
[1641070073233,0.54757936,3765.7,3765.6,3.08990561]
[1641070074494,0.54757936,3765.7,3765.6,5.43990561]
[1641070077396,0.54757936,3765.7,3765.6,6.70750607]
[1641070078019,0.54757936,3765.7,3765.6,5.43990561]
[1641070079524,0.54757936,3765.7,3765.6,6.71860542]
[1641070079925,0.54757936,3765.7,3765.6,5.43990561]
[1641070080725,0.54757936,3765.7,3765.6,3.08990561]
[1641070081670,0.54757936,3765.7,3765.6,7.31891726]
[1641070082270,0.54757936,3765.7,3765.6,6.03990561]
[1641070085934,0.54757936,3765.7,3765.6,7.3206835]
[1641070087140,0.54757936,3765.7,3765.6,6.03990561]
[1641070088343,0.54757936,3765.7,3765.6,7.32036972]
[1641070089784,0.54757936,3765.7,3765.6,6.03990561]
[1641070090683,0.54757936,3765.7,3765.6,3.08990561]
[1641070091384,0.54757936,3765.7,3765.6,5.43990561]
[1641070094248,0.54757936,3765.7,3765.6,7.12880484]
[1641070096052,0.54757936,3765.7,3765.6,5.43990561]
[1641070096476,0.54757936,3765.7,3765.6,3.08990561]
[1641070098283,0.54757936,3765.7,3765.6,5.58990561]
[1641070100533,0.54757936,3765.7,3765.5,3.74446076]
[1641070100733,0.54757936,3765.7,3765.5,1.2308748]
[1641070100734,2.45,3765.6,3765.5,1.2308748]
[1641070100940,2.833,3765.6,3765.4,1.45124176]
[1641070101137,3.7511208,3765.5,3765.0,4.14652123]
[1641070101336,7.3001,3765.3,3764.4,7.96094935]
[1641070101534,0.11291635,3765.1,3764.9,4.53820432]
[1641070101733,13.59822371,3765.0,3764.9,2.96380432]
[1641070101936,14.30702371,3765.0,3764.9,2.89000432]
[1641070102135,15.30782371,3765.0,3764.9,2.89341486]
[1641070102437,8.66258371,3765.0,3764.9,2.89341486]
[1641070104886,12.17522053,3765.0,3764.9,2.89341486]
[1641070105886,8.66258371,3765.0,3764.9,2.89341486]
[1641070106089,8.76338371,3765.0,3764.9,2.89341486]
[1641070106291,8.76338371,3765.0,3764.6,0.05670443]
[1641070106292,7.3001,3764.7,3764.6,0.05670443]
[1641070106490,13.4305,3764.7,3764.6,0.05670443]
[1641070106790,14.8449,3764.7,3764.6,0.0584097]
[1641070106989,14.8457,3764.7,3764.6,0.0584097]
[1641070107189,14.8441,3764.7,3764.6,0.00170527]
[1641070107390,14.8449,3764.7,3764.6,0.00170527]
[1641070107641,1.16368014,3763.3,3763.2,0.66436]
[1641070108039,1.16368014,3763.3,3763.2,2.8740232]
[1641070109742,1.16368014,3763.3,3763.2,2.2096632]
[1641070110343,1.16368014,3763.3,3763.2,0.0096632]
[1641070110545,1.54668014,3763.3,3763.2,0.0096632]
[1641070110944,1.54668014,3763.3,3763.0,0.01080005]
[1641070111149,28.71665795,3763.1,3763.0,0.01080005]
[1641070112388,29.31665795,3763.1,3763.0,0.01080005]
[1641070113690,29.31665795,3763.1,3762.3,2.65756]
[1641070113691,29.69965795,3763.1,3762.7,0.05670807]
[1641070113890,30.36417795,3763.1,3762.7,0.05670807]
[1641070114089,30.36417795,3763.1,3762.8,0.0119369]
[1641070117448,0.1001,3762.9,3762.8,0.0119369]
[1641070117747,0.4831,3762.9,3762.8,0.0119369]
[1641070118149,1.0831,3762.9,3762.8,0.0119369]
[1641070118351,4.86139085,3762.9,3762.8,0.0119369]
[1641070118550,2.21674607,3762.9,3762.8,0.0119369]
[1641070118750,5.62588988,3762.9,3762.8,0.0119369]
[1641070118989,2.11674607,3762.9,3762.8,0.0119369]
[1641070119588,1.11674607,3762.9,3762.8,0.0119369]
[1641070119788,1.11674607,3762.9,3762.5,0.05670846]
[1641070119991,1.11674607,3762.9,3762.6,0.01307374]
[1641070120595,0.1001,3762.7,3762.6,0.01307374]
[1641070120793,0.4831,3762.7,3762.6,0.01307374]
[1641070121092,2.6831,3762.7,3762.6,0.01307374]
[1641070121294,0.4831,3762.7,3762.6,0.01307374]
[1641070121692,0.1001,3762.5,3762.2,0.01534744]
[1641070121895,0.1001,3762.3,3762.2,0.01534744]
[1641070122094,0.4831,3762.3,3762.2,2.76534744]
[1641070122295,0.7831,3762.3,3762.2,2.76534744]
[1641070122495,1.0831,3762.3,3762.2,5.07347803]
[1641070123533,1.0831,3762.3,3762.2,2.76534744]
[1641070124842,0.7014,3762.8,3762.3,7.2]
[1641070125139,0.7014,3762.8,3762.4,0.01421059]
[1641070125340,0.7014,3762.8,3762.5,1.32878]
[1641070125740,0.7014,3762.8,3762.6,0.01307374]
[1641070126892,0.7014,3762.8,3762.6,1.21136462]
[1641070127090,0.7014,3762.7,3762.6,4.58602328]
[1641070127291,0.7014,3762.7,3762.6,4.57294954]
[1641070127895,0.7014,3762.7,3762.6,10.77294954]
[1641070130943,0.7014,3762.7,3762.6,7.37294954]
[1641070131745,0.7014,3762.7,3762.6,3.99829088]
[1641070131944,0.7014,3763.3,3762.6,6.89829088]
[1641070132145,0.7014,3763.3,3762.9,0.66439]
[1641070133452,0.7014,3763.3,3763.1,0.6644]
[1641070133649,0.7014,3763.3,3763.1,1.32879]
[1641070133886,0.7014,3763.3,3763.2,2.2596632]
[1641070138239,0.7014,3763.3,3763.2,3.47751812]
[1641070138646,0.7014,3763.3,3763.2,2.2596632]
[1641070141252,0.7014,3763.3,3763.2,0.0096632]
[1641070142882,0.7014,3763.3,3763.2,3.5096632]
[1641070143084,0.7014,3763.3,3763.2,0.0096632]
[1641070144886,0.7014,3763.3,3763.2,2.5596632]
[1641070146743,0.7014,3763.3,3763.2,4.8545546]
[1641070151787,0.7014,3763.3,3763.2,8.14888285]
[1641070153847,0.7014,3763.3,3763.2,8.09888285]
[1641070154249,0.7014,3763.3,3763.2,4.8045546]
[1641070154451,0.7014,3763.3,3763.2,2.5096632]
[1641070154650,0.68923732,3763.3,3763.2,2.5096632]
[1641070157685,0.68923732,3763.3,3763.2,4.76788041]
[1641070158791,0.68923732,3763.3,3763.2,8.02756839]
[1641070158991,0.68923732,3763.3,3763.2,4.76788041]
[1641070161738,0.68923732,3763.3,3763.2,8.05514745]
[1641070162542,0.68923732,3763.3,3763.2,4.76788041]
[1641070166301,0.68923732,3763.3,3763.2,8.03977481]
[1641070166502,0.68923732,3763.3,3763.2,4.76788041]
[1641070167631,0.68923732,3763.3,3763.2,5.43218041]
[1641070168436,0.68923732,3763.3,3763.2,6.71929742]
[1641070168736,0.68923732,3763.3,3763.2,5.43218041]
[1641070173586,0.68923732,3763.3,3763.2,8.68964904]
[1641070173788,0.68923732,3763.3,3763.2,5.43218041]
[1641070173992,0.68923732,3763.3,3763.2,8.70316985]
[1641070174190,0.68923732,3763.3,3763.2,5.43218041]
[1641070174794,0.68923732,3763.3,3763.2,4.76788041]
[1641070174994,0.68923732,3763.3,3763.2,3.97437322]
[1641070175762,0.98923732,3763.3,3763.2,3.97437322]
[1641070175962,0.98923732,3763.3,3763.2,3.55633381]
[1641070175963,1.28923732,3763.3,3763.2,3.55633381]
[1641070176564,2.28923732,3763.3,3763.2,3.55633381]
[1641070176764,2.28923732,3763.3,3762.8,2.25821721]
[1641070176966,0.68923732,3763.1,3762.8,2.25821721]
[1641070177165,0.68923732,3763.1,3762.9,2.25992248]
[1641070177368,0.68923732,3763.0,3762.9,2.25992248]
[1641070177566,0.68923732,3763.0,3762.9,2.25821721]
[1641070177966,1.38315813,3763.0,3762.9,2.25821721]
[1641070181388,2.71229813,3763.0,3762.9,2.25821721]
[1641070182290,2.04770813,3763.0,3762.9,2.25821721]
[1641070183939,3.53070813,3763.0,3762.9,2.25821721]
[1641070184137,3.53870813,3763.0,3762.9,2.25821721]
[1641070184539,3.53950813,3763.0,3762.4,1.2981166]
[1641070184743,0.68923732,3762.7,3762.1,2.76626042]
[1641070184942,1.98663362,3762.2,3762.1,2.76626042]
[1641070185339,1.98663362,3762.2,3762.1,2.77251308]
[1641070187395,0.68923732,3762.3,3762.1,5.37251308]
[1641070187597,0.68923732,3762.2,3762.1,5.37251308]
[1641070187798,0.68923732,3762.2,3762.1,5.36626042]
[1641070188201,0.68923732,3762.2,3762.1,2.76626042]
[1641070188398,0.68923732,3762.2,3762.1,5.06626042]
[1641070188799,2.029106,3762.2,3762.1,2.76626042]
[1641070189603,2.029106,3762.2,3762.0,56.3293]
[1641070192443,0.68923732,3762.2,3762.0,56.3293]
[1641070193645,1.6921532,3762.2,3762.0,56.3293]
[1641070194999,1.6921532,3762.2,3762.0,55.0]
[1641070195199,2.3568232,3762.2,3762.0,54.95]
[1641070198838,0.68923732,3762.1,3762.0,54.95]
[1641070199041,1.68923732,3762.1,3762.0,54.95]
[1641070199241,1.68923732,3762.1,3762.0,54.95682108]
[1641070201045,0.68923732,3762.1,3762.0,54.95682108]
[1641070202185,4.12699631,3762.1,3762.0,54.95682108]
[1641070202386,6.45650631,3762.1,3762.0,54.95682108]
[1641070202587,6.94270631,3762.1,3762.0,54.95682108]
[1641070202987,6.94510631,3762.1,3762.0,54.95682108]
[1641070203187,6.94590631,3762.1,3762.0,54.95682108]
[1641070203387,6.94510631,3762.1,3762.0,54.95682108]
[1641070203586,6.94270631,3762.1,3762.0,54.95682108]
[1641070203789,6.94430631,3762.1,3762.0,54.95682108]
[1641070204190,6.94350631,3762.1,3762.0,54.95682108]
[1641070204393,6.94270631,3762.1,3762.0,54.95682108]
[1641070204790,6.94430631,3762.1,3762.0,54.95682108]
[1641070205245,6.94590631,3762.1,3762.0,54.95682108]
[1641070205448,6.94430631,3762.1,3762.0,54.95682108]
[1641070205645,6.94750631,3762.1,3762.0,54.95682108]
[1641070205846,6.94670631,3762.1,3762.0,54.95682108]
[1641070206046,6.94510631,3762.1,3762.0,54.95682108]
[1641070206450,6.94430631,3762.1,3762.0,54.95682108]
[1641070206648,6.9520566,3762.1,3762.0,54.95682108]
[1641070206846,6.9504566,3762.1,3762.0,54.95682108]
[1641070207046,6.9496566,3762.1,3762.0,54.95682108]
[1641070207249,6.9504566,3762.1,3762.0,54.95682108]
[1641070207447,3.50494732,3762.1,3762.0,54.95682108]
[1641070207647,3.50654732,3762.1,3762.0,54.95682108]
[1641070207848,7.00268368,3762.1,3762.0,54.95682108]
[1641070208048,3.50654732,3762.1,3762.0,54.95682108]
[1641070208248,6.96003441,3762.1,3762.0,54.95682108]
[1641070208547,7.65982435,3762.1,3762.0,54.95682108]
[1641070208748,7.66302435,3762.1,3762.0,54.95682108]
[1641070209201,7.66062435,3762.1,3762.0,54.95682108]
[1641070209401,4.20953726,3762.1,3762.0,54.95682108]
[1641070209600,4.20793726,3762.1,3762.0,54.95682108]
[1641070209802,7.7116785,3762.1,3762.0,54.95682108]
[1641070210000,19.83837775,3762.1,3762.0,40.6922661]
[1641070210200,20.86317775,3762.1,3762.0,38.4922661]
[1641070210400,62.84111121,3762.1,3762.0,38.4665661]
[1641070210600,62.84351121,3762.1,3762.0,33.1465261]
[1641070210800,62.91022864,3762.1,3762.0,33.1465261]
[1641070211001,59.28143304,3762.1,3762.0,33.1465261]
[1641070211301,59.27903304,3762.1,3762.0,22.5065393]
[1641070211504,61.11327454,3762.1,3762.0,22.5065393]
[1641070211702,61.11567454,3762.1,3762.0,11.8664736]
[1641070211901,61.11167454,3762.1,3762.0,10.81699652]
[1641070212102,61.11327454,3762.1,3762.0,10.81699652]
[1641070212303,59.27583304,3762.1,3762.0,5.49691652]
[1641070212503,59.27903304,3762.1,3762.0,5.49691652]
[1641070212735,59.28063304,3762.1,3762.0,0.17682652]
[1641070212936,59.27823304,3762.1,3762.0,0.17682652]
[1641070213138,59.27663304,3762.1,3762.0,0.17682652]
[1641070213334,0.68923732,3761.9,3759.8,3.9771]
[1641070213539,0.68923732,3761.0,3759.8,3.9771]
[1641070213734,0.68923732,3760.1,3759.8,3.9390369]
[1641070213939,0.68923732,3760.0,3759.6,7.53978]
[1641070214338,0.68923732,3760.0,3759.7,0.00113684]
[1641070214540,0.68923732,3760.0,3759.7,1.33113684]
[1641070215340,24.67653278,3759.8,3759.7,0.66613684]
[1641070216392,24.67653278,3759.8,3759.6,5.34300775]
[1641070216393,7.93923732,3759.7,3759.6,5.34300775]
[1641070216695,7.93923732,3759.7,3758.8,0.05631035]
[1641070216696,0.68923732,3759.5,3758.8,0.05631035]
[1641070216889,5.85,3759.6,3758.8,0.05631035]
[1641070216890,0.68923732,3759.3,3758.8,0.05631035]
[1641070217089,0.383,3759.4,3758.8,0.05631035]
[1641070217090,0.68923732,3759.1,3758.9,0.00454739]
[1641070217285,1.07223732,3759.0,3758.9,0.00454739]
[1641070217486,1.17303732,3759.0,3758.9,0.00454739]
[1641070217691,1.67223732,3759.0,3758.6,0.00625266]
[1641070218188,0.68923732,3758.7,3758.4,0.00738951]
[1641070218388,1.07223732,3758.6,3758.4,0.00738951]
[1641070218888,0.98923732,3758.5,3758.4,4.50738951]
[1641070219096,0.1,3759.1,3758.5,0.33916268]
[1641070219300,0.0563128,3759.6,3758.9,0.78812725]
[1641070219494,0.0563128,3759.6,3758.9,1.41282725]
[1641070219694,0.0563128,3759.6,3759.0,0.00397897]
[1641070219894,0.0563128,3759.6,3759.3,6.15]
[1641070220146,0.0563128,3759.6,3759.4,1.19627026]
[1641070220347,0.0563128,3759.6,3759.4,1.86292213]
[1641070220547,0.0563128,3759.6,3759.5,7.25113685]
[1641070221248,0.00341054,3760.3,3759.8,0.66494]
[1641070221651,0.00284211,3760.2,3759.8,0.66494]
[1641070222049,0.00227369,3760.1,3759.8,0.66494]
[1641070222452,2.21663527,3760.7,3759.8,0.66494]
[1641070222848,0.00341054,3760.6,3759.8,0.66494]
[1641070223248,0.00284211,3760.5,3759.8,0.66494]
[1641070223449,0.00284211,3760.5,3759.9,0.66494]
[1641070223650,0.00227369,3760.4,3759.9,0.66494]
[1641070224088,0.00170527,3760.3,3759.9,0.66494]
[1641070224493,0.00113684,3760.2,3759.9,0.66494]
[1641070224890,0.00113684,3760.2,3759.9,0.61494]
[1641070227292,0.00113684,3760.2,3760.0,3.32339384]
[1641070228150,0.00113684,3760.2,3760.0,1.10600889]
[1641070228347,0.00113684,3760.2,3760.0,5.71116094]
[1641070228547,0.00113684,3760.2,3760.1,7.20447194]
[1641070229252,0.00113684,3760.2,3760.1,5.52870575]
[1641070230658,0.00113684,3760.2,3760.1,2.25]
[1641070230856,0.00113684,3760.2,3760.1,4.45]
[1641070231057,0.00113684,3760.2,3760.1,7.71853362]
[1641070231254,0.00113684,3760.2,3760.1,4.45]
[1641070231704,0.00113684,3760.2,3760.1,7.73574595]
[1641070232912,0.00113684,3760.2,3760.1,4.45]
[1641070233515,0.00113684,3760.2,3760.1,2.25]
[1641070234819,0.00113684,3760.2,3760.1,4.4]
[1641070235019,0.00113684,3760.2,3760.1,6.09029916]
[1641070243444,0.69547832,3760.2,3760.1,9.3672622]
[1641070243642,0.69547832,3760.2,3760.1,6.09029916]
[1641070243843,0.69547832,3760.2,3760.1,9.32374754]
[1641070244046,0.69547832,3760.2,3760.1,6.09029916]
[1641070245352,0.69547832,3760.2,3760.1,7.39345708]
[1641070246611,0.69547832,3760.2,3760.1,6.09029916]
[1641070249116,0.69547832,3760.2,3760.1,6.04029916]
[1641070249318,0.69547832,3760.2,3760.1,7.34380085]
[1641070250551,0.69547832,3760.2,3760.1,5.19380085]
[1641070251547,0.69547832,3760.2,3760.1,3.89029916]
[1641070253547,0.69547832,3760.2,3760.1,6.34029916]
[1641070253997,0.69547832,3760.2,3760.1,3.89029916]
[1641070255601,0.69547832,3760.2,3760.1,6.09029916]
[1641070256800,0.69547832,3760.2,3760.1,5.19380085]
[1641070257638,0.69547832,3760.2,3760.1,3.89029916]
[1641070258840,0.69434148,3760.2,3760.1,3.89029916]
[1641070259547,0.69434148,3760.2,3760.1,5.19380085]
[1641070260346,0.69434148,3760.2,3760.1,3.89029916]
[1641070262690,0.69434148,3760.2,3760.1,5.19380085]
[1641070263191,0.69434148,3760.2,3760.1,3.89029916]
[1641070264396,0.69434148,3760.2,3760.1,1.69029916]
[1641070264397,0.99434148,3760.2,3760.1,1.69029916]
[1641070264796,1.67734148,3760.2,3760.1,1.69029916]
[1641070264995,1.78774148,3760.2,3760.1,1.69029916]
[1641070265453,1.78134148,3760.2,3760.1,1.69029916]
[1641070265653,1.78134148,3760.2,3759.7,2.35534926]
[1641070265654,1.67734148,3760.2,3759.7,2.35534926]
[1641070265853,1.77894148,3760.2,3759.7,2.35534926]
[1641070266057,2.67734148,3760.2,3759.7,2.35705453]
[1641070266552,2.67734148,3760.2,3759.8,1.69029916]
[1641070266553,1.0,3760.1,3759.8,1.69029916]
[1641070266754,1.383,3760.1,3759.8,1.69029916]
[1641070266953,0.383,3760.1,3759.8,1.69029916]
[1641070267154,1.383,3760.1,3759.7,0.66675537]
[1641070267355,0.383,3760.1,3759.7,0.66675537]
[1641070267560,1.383,3760.1,3759.7,0.66675537]
[1641070267758,0.66506,3760.0,3759.7,0.66675537]
[1641070267959,0.66506,3760.0,3759.8,1.55768067]
[1641070268159,0.96506,3760.0,3759.8,1.55768067]
[1641070268359,1.26506,3760.0,3759.7,0.66675537]
[1641070268562,2.26506,3760.0,3759.7,0.66675537]